fUSD/lending_fUSD_20240210
["ID","MTS","AMOUNT","RATE_DAILY","PERIOD"]
[313714546,1707601861531,-582.77,0.00039178,30]
[313714547,1707601861540,-500.0,0.00039178,30]
[313714548,1707601861550,-500.0,0.00039178,30]
[313714549,1707601861560,-673.15,0.00039178,30]
[313714550,1707601861576,-500.0,0.00039178,30]
[313714551,1707601861586,-1007.19,0.00039178,30]
[313714552,1707601861595,-635.99,0.00039178,30]
[313714553,1707601861605,-500.0,0.00039178,30]
[313714554,1707601861615,-763.66,0.00039178,30]
[313714555,1707601861624,-500.0,0.00039178,30]
[313714556,1707601861634,-500.0,0.00039178,30]
[313714557,1707601861645,-500.0,0.00039178,30]
[313714558,1707601861655,-308.20363119,0.00039178,30]
[313714559,1707601861665,-500.0,0.00039178,30]
[313714560,1707601861674,-500.0,0.00039178,30]
[313714561,1707601861684,-534.16,0.00039178,30]
[313714562,1707601861694,-500.0,0.00039178,30]
[313714563,1707601861703,-500.0,0.00039178,30]
[313714564,1707601861713,-500.0,0.00039178,30]
[313714565,1707601861722,-304.58715305,0.00039178,30]
[313714566,1707601861732,-838.11,0.00039178,30]
[313714567,1707601861741,-250.0,0.00039178,30]
[313714568,1707601861751,-1102.36,0.00039178,30]
[313714569,1707601861760,-500.0,0.00039178,30]
[313714570,1707601861769,-500.0,0.00039178,30]
[313714571,1707601861778,-500.0,0.00039178,30]
[313714572,1707601861787,-500.0,0.00039178,30]
[313714573,1707601861797,-500.0,0.00039178,30]
[313714574,1707601861806,-500.0,0.00039178,30]
[313714575,1707601861817,-500.0,0.00039178,30]
[313714576,1707601861826,-600.03,0.00039178,30]
[313714577,1707601861835,-500.0,0.00039178,30]
[313714578,1707601861845,-500.0,0.00039178,30]
[313714579,1707601861854,-500.0,0.00039178,30]
[313714580,1707601861863,-500.0,0.00039178,30]
[313714581,1707601861874,-642.55,0.00039178,30]
[313714582,1707601861883,-976.35,0.00039178,30]
[313714583,1707601861893,-717.72,0.00039178,30]
[313714584,1707601861902,-500.0,0.00039178,30]
[313714585,1707601861911,-500.0,0.00039178,30]
[313714586,1707601861920,-500.0,0.00039178,30]
[313714587,1707601861929,-500.0,0.00039178,30]
[313714588,1707601861938,-500.0,0.00039178,30]
[313714589,1707601861947,-554.63,0.00039178,30]
[313714590,1707601861956,-500.0,0.00039178,30]
[313714591,1707601861966,-732.11,0.00039178,30]
[313714592,1707601861975,-500.0,0.00039178,30]
[313714593,1707601861985,-713.83,0.00039178,30]
[313714594,1707601861994,-543.49,0.00039178,30]
[313714595,1707601862004,-500.0,0.00039178,30]
[313714596,1707601862013,-434.04367479,0.00039178,30]
[313714597,1707601862025,-500.0,0.00039178,30]
[313714598,1707601862035,-500.0,0.00039178,30]
[313714599,1707601862044,-500.0,0.00039178,30]
[313714600,1707601862053,-260.73235279,0.00039178,30]
[313714601,1707601862064,-500.0,0.00039178,30]
[313714602,1707601862073,-500.0,0.00039178,30]
[313714603,1707601862083,-500.0,0.00039178,30]
[313714604,1707601862093,-500.0,0.00039178,30]
[313714605,1707601862102,-500.0,0.00039178,30]
[313714606,1707601862111,-541.0,0.00039178,30]
[313714607,1707601862121,-500.0,0.00039178,30]
[313714608,1707601862130,-500.0,0.00039178,30]
[313714609,1707601862140,-1034.04,0.00039178,30]
[313714610,1707601862149,-500.0,0.00039178,30]
[313714611,1707601862159,-500.0,0.00039178,30]
[313714612,1707601862168,-500.0,0.00039178,30]
[313714613,1707601862178,-795.66,0.00039178,30]
[313714614,1707601862188,-534.28,0.00039178,30]
[313714615,1707601862198,-500.0,0.00039178,30]
[313714616,1707601862207,-908.38,0.00039178,30]
[313714617,1707601862216,-500.0,0.00039178,30]
[313714618,1707601862225,-500.0,0.00039178,30]
[313714619,1707601862236,-500.0,0.00039178,30]
[313714620,1707601862245,-731.71,0.00039178,30]
[313714621,1707601862256,-500.0,0.00039178,30]
[313714622,1707601862265,-500.0,0.00039178,30]
[313714623,1707601862274,-500.0,0.00039178,30]
[313714624,1707601862284,-500.0,0.00039178,30]
[313714625,1707601862294,-515.27,0.00039178,30]
[313714626,1707601862303,-500.0,0.00039178,30]
[313714627,1707601862314,-500.0,0.00039178,30]
[313714628,1707601862323,-500.0,0.00039178,30]
[313714629,1707601862333,-767.36,0.00039178,30]
[313714630,1707601862343,-884.33,0.00039178,30]
[313714631,1707601862353,-500.0,0.00039178,30]
[313714632,1707601862362,-500.0,0.00039178,30]
[313714633,1707601862371,-547.76,0.00039178,30]
[313714634,1707601862380,-737.52,0.00039178,30]
[313714635,1707601862389,-500.0,0.00039178,30]
[313714636,1707601862398,-500.0,0.00039178,30]
[313714637,1707601862407,-500.0,0.00039178,30]
[313714638,1707601862416,-712.78,0.00039178,30]
[313714639,1707601862426,-737.99,0.00039178,30]
[313714640,1707601862435,-599.27,0.00039178,30]
[313714641,1707601862445,-753.18,0.00039178,30]
[313714642,1707601862454,-500.0,0.00039178,30]
[313714643,1707601862463,-628.23,0.00039178,30]
[313714644,1707601862473,-545.39,0.00039178,2]
[313714645,1707601862483,-500.0,0.00039178,30]
[313714646,1707601862493,-354.64,0.00039178,30]
[313714647,1707601862502,-500.0,0.00039178,30]
[313714648,1707601862511,-882.01,0.00039178,30]
[313714649,1707601862520,-500.0,0.00039178,30]
[313714650,1707601862530,-500.0,0.00039178,2]
[313714651,1707601862540,-523.82,0.00039178,30]
[313714652,1707601862550,-500.0,0.00039178,30]
[313714653,1707601862560,-500.0,0.00039178,30]
[313714654,1707601862573,-788.52,0.00039178,30]
[313714655,1707601862583,-599.85,0.00039178,30]
[313714656,1707601862592,-500.0,0.00039178,30]
[313714657,1707601862603,-500.0,0.00039178,30]
[313714658,1707601862614,-500.0,0.00039178,30]
[313714659,1707601862623,-1000.0,0.00039178,120]
[313714660,1707601862633,-500.0,0.00039178,30]
[313714661,1707601862643,-500.0,0.00039178,30]
[313714662,1707601862654,-500.0,0.00039178,30]
[313714663,1707601862671,-773.2,0.00039178,30]
[313714664,1707601862681,-500.0,0.00039178,30]
[313714665,1707601862691,-500.0,0.00039178,30]
[313714666,1707601862700,-1084.51,0.00039178,30]
[313714667,1707601862710,-500.0,0.00039178,30]
[313714668,1707601862720,-520.12,0.00039178,30]
[313714669,1707601862730,-500.0,0.00039178,30]
[313714670,1707601862740,-656.96,0.00039178,30]
[313714671,1707601862749,-535.91,0.00039178,30]
[313714672,1707601862758,-500.0,0.00039178,30]
[313714673,1707601862767,-500.0,0.00039178,30]
[313714674,1707601862777,-867.54,0.00039178,30]
[313714675,1707601862786,-610.9,0.00039178,30]
[313714676,1707601862796,-500.0,0.00039178,30]
[313714677,1707601862805,-651.27,0.00039178,30]
[313714678,1707601862815,-784.86,0.00039178,30]
[313714679,1707601862825,-500.0,0.00039178,30]
[313714680,1707601862834,-500.0,0.00039178,30]
[313714681,1707601862843,-500.0,0.00039178,30]
[313714682,1707601862853,-500.0,0.00039178,30]
[313714683,1707601862863,-500.0,0.00039178,30]
[313714684,1707601862873,-592.08,0.00039178,30]
[313714685,1707601862883,-500.0,0.00039178,30]
[313714686,1707601862893,-500.0,0.00039178,30]
[313714687,1707601862902,-500.0,0.00039178,30]
[313714688,1707601862911,-569.01,0.00039178,30]
[313714689,1707601862922,-974.04,0.00039178,30]
[313714690,1707601862931,-542.53,0.00039178,30]
[313714691,1707601862941,-443.77102775,0.00039178,30]
[313714692,1707601862950,-500.0,0.00039178,30]
[313714693,1707601862959,-514.14,0.00039178,30]
[313714694,1707601862969,-834.72,0.00039178,30]
[313714695,1707601862978,-500.0,0.00039178,30]
[313714696,1707601862987,-500.0,0.00039178,30]
[313714697,1707601862997,-300.02,0.00039178,30]
[313714698,1707601863006,-784.17,0.00039178,30]
[313714699,1707601863015,-561.24,0.00039178,30]
[313714700,1707601863024,-500.0,0.00039178,30]
[313714701,1707601863033,-500.0,0.00039178,30]
[313714702,1707601863042,-632.71,0.00039178,30]
[313714703,1707601863051,-728.89,0.00039178,30]
[313714704,1707601863061,-500.0,0.00039178,30]
[313714705,1707601863070,-500.0,0.00039178,30]
[313714706,1707601863079,-822.96,0.00039178,30]
[313714707,1707601863089,-521.18,0.00039178,30]
[313714708,1707601863098,-635.8,0.00039178,30]
[313714709,1707601863107,-493.3393265,0.00039178,30]
[313714710,1707601863116,-500.0,0.00039178,30]
[313714711,1707601863125,-736.74,0.00039178,30]
[313714712,1707601863135,-500.0,0.00039178,30]
[313714713,1707601863144,-500.0,0.00039178,30]
[313714714,1707601863155,-500.0,0.00039178,30]
[313714715,1707601863164,-500.0,0.00039178,30]
[313714716,1707601863174,-500.0,0.00039178,30]
[313714717,1707601863184,-1379.06,0.00039178,30]
[313714718,1707601863193,-500.0,0.00039178,30]
[313714719,1707601863203,-414.15821993,0.00039178,30]
[313714720,1707601863212,-679.06,0.00039178,30]
[313714721,1707601863285,-500.0,0.00039178,30]
[313714722,1707601863296,-500.0,0.00039178,30]
[313714723,1707601863305,-500.0,0.00039178,30]
[313714724,1707601863315,-500.0,0.00039178,30]
[313714725,1707601863323,-1217.08,0.00039178,30]
[313714726,1707601863334,-500.0,0.00039178,30]
[313714727,1707601863342,-778.92,0.00039178,30]
[313714728,1707601863351,-500.0,0.00039178,30]
[313714729,1707601863360,-500.0,0.00039178,30]
[313714730,1707601863369,-500.0,0.00039178,30]
[313714731,1707601863378,-500.0,0.00039178,30]
[313714732,1707601863388,-810.84,0.00039178,30]
[313714733,1707601863397,-1841.8,0.00039178,30]
[313714734,1707601863406,-500.0,0.00039178,30]
[313714735,1707601863415,-500.0,0.00039178,30]
[313714736,1707601863424,-265.96,0.00039178,30]
[313714737,1707601863434,-500.0,0.00039178,30]
[313714738,1707601863443,-500.0,0.00039178,30]
[313714739,1707601863452,-1857.97,0.00039178,30]
[313714740,1707601863461,-500.0,0.00039178,30]
[313714741,1707601863471,-500.0,0.00039178,30]
[313714742,1707601863480,-549.96,0.00039178,2]
[313714743,1707601863490,-500.0,0.00039178,30]
[313714744,1707601863499,-1015.73,0.00039178,30]
[313714745,1707601863508,-889.74,0.00039178,30]
[313714746,1707601863518,-500.0,0.00039178,30]
[313714747,1707601863528,-639.74,0.00039178,30]
[313714748,1707601863537,-500.0,0.00039178,30]
[313714749,1707601863546,-561.28,0.00039178,30]
[313714750,1707601863556,-500.0,0.00039178,30]
[313714751,1707601863568,-535.82,0.00039178,30]
[313714752,1707601863579,-500.0,0.00039178,30]
[313714753,1707601863589,-246.21939911,0.00039178,30]
[313714754,1707601863599,-1302.06,0.00039178,30]
[313714755,1707601863608,-1316.65,0.00039178,30]
[313714756,1707601863618,-500.0,0.00039178,30]
[313714757,1707601863627,-500.0,0.00039178,30]
[313714758,1707601863638,-1662.06,0.00039178,30]
[313714759,1707601863647,-500.0,0.00039178,30]
[313714760,1707601863657,-500.0,0.00039178,30]
[313714761,1707601863666,-500.0,0.00039178,30]
[313714762,1707601863675,-557.17,0.00039178,30]
[313714763,1707601863685,-574.72,0.00039178,30]
[313714764,1707601863694,-500.0,0.00039178,30]
[313714765,1707601863703,-500.0,0.00039178,30]
[313714766,1707601863713,-457.47965964,0.00039178,30]
[313714767,1707601863722,-500.0,0.00039178,30]
[313714768,1707601863733,-500.0,0.00039178,30]
[313714769,1707601863743,-3039.75,0.00039178,30]
[313714770,1707601863752,-641.81,0.00039178,30]
[313714771,1707601863761,-500.0,0.00039178,30]
[313714772,1707601863771,-500.0,0.00039178,30]
[313714773,1707601863780,-820.4,0.00039178,30]
[313714774,1707601863789,-500.0,0.00039178,30]
[313714775,1707601863798,-500.0,0.00039178,30]
[313714776,1707601863807,-519.24,0.00039178,30]
[313714777,1707601863817,-531.75,0.00039178,30]
[313714778,1707601863826,-1352.04,0.00039178,30]
[313714779,1707601863835,-500.0,0.00039178,30]
[313714780,1707601863844,-500.0,0.00039178,30]
[313714781,1707601863853,-561.05,0.00039178,30]
[313714782,1707601863862,-263.97,0.00039178,30]
[313714783,1707601863871,-693.34,0.00039178,30]
[313714784,1707601863880,-3416.57,0.00039178,30]
[313714785,1707601863889,-500.0,0.00039178,30]
[313714786,1707601863898,-551.85,0.00039178,30]
[313714787,1707601863907,-500.0,0.00039178,30]
[313714788,1707601863916,-500.0,0.00039178,30]
[313714789,1707601863926,-523.22,0.00039178,30]
[313714790,1707601863935,-642.83,0.00039178,30]
[313714791,1707601863944,-500.0,0.00039178,30]
[313714792,1707601863954,-500.0,0.00039178,30]
[313714793,1707601863963,-500.0,0.00039178,30]
[313714794,1707601863972,-500.0,0.00039178,30]
[313714795,1707601863982,-500.0,0.00039178,30]
[313714796,1707601863991,-500.0,0.00039178,30]
[313714797,1707601864000,-500.0,0.00039178,30]
[313714798,1707601864009,-878.41,0.00039178,30]
[313714799,1707601864019,-313.28,0.00039178,30]
[313714800,1707601864027,-500.0,0.00039178,30]
[313714801,1707601864036,-1509.53,0.00039178,30]
[313714802,1707601864045,-500.0,0.00039178,30]
[313714803,1707601864053,-863.6,0.00039178,5]
[313714804,1707601864063,-500.0,0.00039178,30]
[313714805,1707601864072,-500.0,0.00039178,30]
[313714806,1707601864081,-500.0,0.00039178,30]
[313714807,1707601864090,-1068.6,0.00039178,30]
[313714808,1707601864099,-500.0,0.00039178,30]
[313714809,1707601864108,-500.0,0.00039178,30]
[313714810,1707601864116,-981.77,0.00039178,30]
[313714811,1707601864126,-500.0,0.00039178,30]
[313714812,1707601864135,-2683.19,0.00039178,30]
[313714813,1707601864144,-500.0,0.00039178,30]
[313714814,1707601864153,-500.0,0.00039178,30]
[313714815,1707601864163,-500.0,0.00039178,30]
[313714816,1707601864173,-828.45,0.00039178,30]
[313714817,1707601864182,-1734.41,0.00039178,30]
[313714818,1707601864192,-500.0,0.00039178,30]
[313714819,1707601864200,-500.0,0.00039178,30]
[313714820,1707601864209,-297.49561216,0.00039178,30]
[313714821,1707601864219,-500.0,0.00039178,30]
[313714822,1707601864228,-2401.7,0.00039178,30]
[313714823,1707601864237,-500.0,0.00039178,30]
[313714824,1707601864246,-500.0,0.00039178,30]
[313714825,1707601864256,-500.0,0.00039178,30]
[313714826,1707601864265,-1796.69,0.00039178,30]
[313714827,1707601864274,-500.0,0.00039178,30]
[313714828,1707601864283,-635.08,0.00039178,30]
[313714829,1707601864292,-500.0,0.00039178,30]
[313714830,1707601864301,-558.32,0.00039178,30]
[313714831,1707601864310,-668.46,0.00039178,30]
[313714832,1707601864320,-2258.53,0.00039178,30]
[313714833,1707601864329,-500.0,0.00039178,30]
[313714834,1707601864338,-1436.75,0.00039178,30]
[313714835,1707601864347,-500.0,0.00039178,30]
[313714836,1707601864356,-500.0,0.00039178,30]
[313714837,1707601864365,-630.77,0.00039178,30]
[313714838,1707601864374,-1973.1,0.00039178,30]
[313714839,1707601864383,-500.0,0.00039178,30]
[313714840,1707601864392,-3251.25,0.00039178,30]
[313714841,1707601864401,-1594.12,0.00039178,30]
[313714842,1707601864410,-4524.13,0.00039178,30]
[313714843,1707601864419,-624.13,0.00039178,30]
[313714844,1707601864428,-544.25,0.00039178,30]
[313714845,1707601864437,-500.0,0.00039178,30]
[313714846,1707601864447,-500.0,0.00039178,30]
[313714847,1707601864456,-500.0,0.00039178,30]
[313714848,1707601864466,-500.0,0.00039178,30]
[313714849,1707601864475,-500.0,0.00039178,30]
[313714850,1707601864484,-500.0,0.00039178,30]
[313714851,1707601864493,-1257.23,0.00039178,30]
[313714852,1707601864502,-500.0,0.00039178,30]
[313714853,1707601864511,-500.0,0.00039178,30]
[313714854,1707601864521,-500.0,0.00039178,30]
[313714855,1707601864530,-500.0,0.00039178,30]
[313714856,1707601864539,-2240.69,0.00039178,30]
[313714857,1707601864549,-500.0,0.00039178,30]
[313714858,1707601864558,-500.0,0.00039178,30]
[313714859,1707601864570,-500.0,0.00039178,30]
[313714860,1707601864580,-500.0,0.00039178,30]
[313714861,1707601864589,-500.0,0.00039178,30]
[313714862,1707601864599,-500.0,0.00039178,30]
[313714863,1707601864608,-500.0,0.00039178,30]
[313714864,1707601864618,-500.0,0.00039178,30]
[313714865,1707601864628,-500.0,0.00039178,30]
[313714866,1707601864637,-500.0,0.00039178,30]
[313714867,1707601864648,-2274.07,0.00039178,30]
[313714868,1707601864658,-500.0,0.00039178,30]
[313714869,1707601864668,-181.10264221,0.00039178,30]
[313714870,1707601864678,-500.0,0.00039178,30]
[313714871,1707601864688,-500.0,0.00039178,30]
[313714872,1707601864699,-500.0,0.00039178,30]
[313714873,1707601864709,-394.50364173,0.00039178,30]
[313714874,1707601864719,-1307.77,0.00039178,30]
[313714875,1707601864728,-500.0,0.00039178,2]
[313714876,1707601864738,-1625.66,0.00039178,30]
[313714877,1707601864747,-500.0,0.00039178,30]
[313714878,1707601864758,-500.0,0.00039178,30]
[313714879,1707601864768,-500.0,0.00039178,30]
[313714880,1707601864777,-1329.42,0.00039178,30]
[313714881,1707601864786,-528.28,0.00039178,30]
[313714882,1707601864795,-1376.47,0.00039178,30]
[313714883,1707601864804,-1334.71,0.00039178,30]
[313714884,1707601864814,-881.37,0.00039178,30]
[313714885,1707601864824,-500.0,0.00039178,30]
[313714886,1707601864833,-190.31,0.00039178,30]
[313714887,1707601864843,-500.0,0.00039178,30]
[313714888,1707601864852,-616.58,0.00039178,30]
[313714889,1707601864862,-500.0,0.00039178,30]
[313714890,1707601864872,-500.0,0.00039178,30]
[313714891,1707601864882,-500.0,0.00039178,2]
[313714892,1707601864892,-500.0,0.00039178,30]
[313714893,1707601864901,-2669.57,0.00039178,30]
[313714894,1707601864910,-500.0,0.00039178,30]
[313714895,1707601864919,-577.16,0.00039178,2]
[313714896,1707601864928,-1078.4,0.00039178,30]
[313714897,1707601864938,-2323.02,0.00039178,30]
[313714898,1707601864947,-500.0,0.00039178,30]
[313714899,1707601864956,-4587.53,0.00039178,30]
[313714900,1707601864965,-943.15,0.00039178,30]
[313714901,1707601864974,-743.65,0.00039178,30]
[313714902,1707601864983,-744.84,0.00039178,30]
[313714903,1707601864992,-500.0,0.00039178,30]
[313714904,1707601865002,-500.0,0.00039178,30]
[313714905,1707601865011,-932.41,0.00039178,30]
[313714906,1707601865021,-500.0,0.00039178,30]
[313714907,1707601865030,-1206.69,0.00039178,30]
[313714908,1707601865040,-500.0,0.00039178,30]
[313714909,1707601865050,-500.0,0.00039178,30]
[313714910,1707601865061,-630.91797034,0.00039178,30]
[313714911,1707601865072,-4530.38,0.00039178,30]
[313714912,1707601865083,-1707.67,0.00039178,30]
[313714913,1707601865094,-500.0,0.00039178,30]
[313714914,1707601865104,-500.0,0.00039178,30]
[313714915,1707601865114,-500.0,0.00039178,30]
[313714916,1707601865123,-355.96143015,0.00039178,30]
[313714917,1707601865134,-500.0,0.00039178,30]
[313714918,1707601865143,-526.81,0.00039178,30]
[313714919,1707601865154,-500.0,0.00039178,30]
[313714920,1707601865164,-1406.78,0.00039178,30]
[313714921,1707601865174,-647.73,0.00039178,30]
[313714922,1707601865184,-500.0,0.00039178,30]
[313714923,1707601865194,-500.0,0.00039178,30]
[313714924,1707601865204,-1864.35,0.00039178,30]
[313714925,1707601865214,-500.0,0.00039178,30]
[313714926,1707601865224,-500.0,0.00039178,30]
[313714927,1707601865233,-1519.09,0.00039178,30]
[313714928,1707601865243,-500.0,0.00039178,30]
[313714929,1707601865253,-1039.09,0.00039178,30]
[313714930,1707601865263,-1508.38,0.00039178,30]
[313714931,1707601865273,-523.71,0.00039178,30]
[313714932,1707601865283,-1290.83,0.00039178,30]
[313714933,1707601865293,-500.0,0.00039178,30]
[313714934,1707601865303,-574.9,0.00039178,30]
[313714935,1707601865312,-532.0,0.00039178,30]
[313714936,1707601865323,-500.0,0.00039178,30]
[313714937,1707601865333,-1239.46,0.00039178,30]
[313714938,1707601865343,-607.24,0.00039178,30]
[313714939,1707601865353,-769.27,0.00039178,30]
[313714940,1707601865363,-500.0,0.00039178,30]
[313714941,1707601865372,-1594.59,0.00039178,30]
[313714942,1707601865382,-1293.56,0.00039178,30]
[313714943,1707601865391,-1374.11,0.00039178,30]
[313714944,1707601865401,-572.05,0.00039178,30]
[313714945,1707601865410,-500.0,0.00039178,30]
[313714946,1707601865420,-500.0,0.00039178,30]
[313714947,1707601865430,-846.98,0.00039178,30]
[313714948,1707601865440,-2406.41,0.00039178,30]
[313714949,1707601865450,-2927.06,0.00039178,30]
[313714950,1707601865460,-500.0,0.00039178,30]
[313714951,1707601865469,-500.0,0.00039178,30]
[313714952,1707601865479,-500.0,0.00039178,30]
[313714953,1707601865490,-642.45,0.00039178,30]
[313714954,1707601865500,-2633.36,0.00039178,30]
[313714955,1707601865510,-500.0,0.00039178,30]
[313714956,1707601865519,-683.9,0.00039178,30]
[313714957,1707601865529,-500.0,0.00039178,30]
[313714958,1707601865540,-500.0,0.00039178,30]
[313714959,1707601865549,-1941.25,0.00039178,30]
[313714960,1707601865559,-500.0,0.00039178,30]
[313714961,1707601865572,-800.43,0.00039178,30]
[313714962,1707601865582,-500.0,0.00039178,30]
[313714963,1707601865593,-1008.96,0.00039178,30]
[313714964,1707601865603,-500.0,0.00039178,30]
[313714965,1707601865615,-2269.39,0.00039178,30]
[313714966,1707601865625,-500.0,0.00039178,30]
[313714967,1707601865635,-500.0,0.00039178,30]
[313714968,1707601865645,-500.0,0.00039178,30]
[313714969,1707601865656,-3274.17,0.00039178,30]
[313714970,1707601865668,-1919.56,0.00039178,30]
[313714971,1707601865678,-500.0,0.00039178,30]
[313714972,1707601865688,-565.81,0.00039178,30]
[313714973,1707601865698,-500.0,0.00039178,30]
[313714974,1707601865708,-1427.37,0.00039178,30]
[313714975,1707601865718,-500.0,0.00039178,30]
[313714976,1707601865728,-500.0,0.00039178,30]
[313714977,1707601865739,-888.4,0.00039178,30]
[313714978,1707601865749,-500.0,0.00039178,30]
[313714979,1707601865759,-558.56,0.00039178,30]
[313714980,1707601865769,-500.0,0.00039178,30]
[313714981,1707601865778,-500.0,0.00039178,30]
[313714982,1707601865788,-2572.05,0.00039178,30]
[313714983,1707601865799,-1202.85,0.00039178,30]
[313714984,1707601865809,-1220.73,0.00039178,30]
[313714985,1707601865820,-960.75,0.00039178,30]
[313714986,1707601865830,-500.0,0.00039178,30]
[313714987,1707601865840,-500.0,0.00039178,30]
[313714988,1707601865850,-762.82,0.00039178,30]
[313714989,1707601865859,-551.31,0.00039178,30]
[313714990,1707601865870,-896.5,0.00039178,30]
[313714991,1707601865880,-629.98,0.00039178,30]
[313714992,1707601865891,-500.0,0.00039178,30]
[313714993,1707601865902,-2391.63,0.00039178,30]
[313714994,1707601865912,-689.25,0.00039178,30]
[313714995,1707601865922,-1838.86,0.00039178,30]
[313714996,1707601865932,-2559.04,0.00039178,30]
[313714997,1707601865942,-500.0,0.00039178,30]
[313714998,1707601865952,-1498.61,0.00039178,30]
[313714999,1707601865962,-500.0,0.00039178,30]
[313715000,1707601865971,-500.0,0.00039178,30]
[313715001,1707601865981,-269.30561907,0.00039178,30]
[313715002,1707601865991,-500.0,0.00039178,30]
[313715003,1707601866001,-500.0,0.00039178,30]
[313715004,1707601866011,-1021.32,0.00039178,30]
[313715005,1707601866021,-500.0,0.00039178,30]
[313715006,1707601866031,-1365.79,0.00039178,5]
[313715007,1707601866040,-514.47,0.00039178,30]
[313715008,1707601866050,-612.67,0.00039178,30]
[313715009,1707601866061,-500.0,0.00039178,30]
[313715010,1707601866072,-500.0,0.00039178,30]
[313715011,1707601866081,-325.27,0.00039178,30]
[313715012,1707601866091,-586.91,0.00039178,30]
[313715013,1707601866101,-1186.41,0.00039178,30]
[313715014,1707601866111,-1811.1,0.00039178,5]
[313715015,1707601866121,-179.67609704,0.00039187,7]
[313715016,1707601866131,-1783.65086148,0.00039198,11]
[313715017,1707601866141,-1783.65086148,0.00039198,11]
[313715018,1707601866150,-1783.65086148,0.00039198,11]
[313715019,1707601866160,-1783.65086148,0.00039198,11]
[313715020,1707601866170,-1000.0,0.0003926,2]
[313715021,1707601866180,-150.0,0.000393,28]
[313715022,1707601866190,-153.7803214,0.00039356,7]
[313715023,1707601866200,-150.0,0.00039366,2]
[313715024,1707601866210,-150.0,0.00039366,2]
[313715025,1707601866219,-500.0,0.0003939,10]
[313715026,1707601866229,-522.13,0.0003941,7]
[313715027,1707601866238,-522.13,0.0003941,7]
[313715028,1707601866248,-262.424,0.00039426,2]
[313715029,1707601866257,-500.0,0.00039452,30]
[313715030,1707601866267,-500.0,0.00039452,30]
[313715031,1707601866277,-500.0,0.00039452,30]
[313715032,1707601866287,-500.0,0.00039452,30]
[313715033,1707601866297,-500.0,0.00039452,30]
[313715034,1707601866307,-500.0,0.00039452,30]
[313715035,1707601866318,-500.0,0.00039452,30]
[313715036,1707601866328,-500.0,0.00039452,30]
[313715037,1707601866338,-500.0,0.00039452,30]
[313715038,1707601866347,-500.0,0.00039452,30]
[313715039,1707601866357,-500.0,0.00039452,30]
[313715040,1707601866367,-527.66,0.00039452,30]
[313715041,1707601866377,-500.0,0.00039452,30]
[313715042,1707601866386,-363.76980475,0.00039452,30]
[313715043,1707601866396,-500.0,0.00039452,30]
[313715044,1707601866406,-637.37348803,0.00039452,30]
[313715045,1707601866416,-500.0,0.00039452,30]